fUST/lending_fUST_20260602
["ID","MTS","AMOUNT","RATE_DAILY","PERIOD"]
[423762178,1780398640000,-500.0,0.00014246,2]
[423762187,1780398640000,-500.0,0.00014339,2]
[423762179,1780398640000,-810.94,0.00014246,2]
[423762182,1780398640000,-500.0,0.00014246,2]
[423762183,1780398640000,-151.0,0.000143,2]
[423762177,1780398640000,-500.0,0.00014246,2]
[423762181,1780398640000,-500.0,0.00014246,2]
[423762167,1780398640000,-500.0,0.00014069,2]
[423762185,1780398640000,-501.38,0.00014339,2]
[423762189,1780398640000,-569.45,0.00014339,2]
[423762188,1780398640000,-759.36,0.00014339,2]
[423762190,1780398640000,-500.0,0.0001434,2]
[423762191,1780398640000,-500.0,0.0001434,2]
[423762192,1780398640000,-500.0,0.0001434,2]
[423762195,1780398640000,-500.0,0.0001434,2]
[423762196,1780398640000,-500.0,0.0001434,2]
[423762193,1780398640000,-500.0,0.0001434,2]
[423762197,1780398640000,-500.0,0.0001434,2]
[423762194,1780398640000,-500.0,0.0001434,2]
[423762200,1780398640000,-440.36469939,0.0001434,2]
[423762198,1780398640000,-821.69,0.0001434,2]
[423762111,1780398640000,-1774.6875,0.00014067,2]
[423762184,1780398640000,-151.0,0.000143,2]
[423762170,1780398640000,-500.0,0.00014069,2]
[423762199,1780398640000,-500.0,0.0001434,2]
[423762165,1780398640000,-500.0,0.00014069,2]
[423762173,1780398640000,-500.0,0.00014246,2]
[423762117,1780398640000,-500.0,0.00014068,2]
[423762122,1780398640000,-500.0,0.00014068,2]
[423762113,1780398640000,-1273.15,0.00014068,2]
[423762132,1780398640000,-300.0,0.00014069,2]
[423762125,1780398640000,-300.0,0.00014069,2]
[423762124,1780398640000,-500.0,0.00014068,2]
[423762128,1780398640000,-300.0,0.00014069,2]
[423762130,1780398640000,-300.0,0.00014069,2]
[423762136,1780398640000,-300.0,0.00014069,2]
[423762134,1780398640000,-300.0,0.00014069,2]
[423762142,1780398640000,-300.0,0.00014069,2]
[423762140,1780398640000,-300.0,0.00014069,2]
[423762138,1780398640000,-300.0,0.00014069,2]
[423762115,1780398640000,-500.0,0.00014068,2]
[423762162,1780398640000,-500.0,0.00014069,2]
[423762144,1780398640000,-300.0,0.00014069,2]
[423762150,1780398640000,-300.0,0.00014069,2]
[423762154,1780398640000,-300.0,0.00014069,2]
[423762146,1780398640000,-300.0,0.00014069,2]
[423762156,1780398640000,-500.0,0.00014069,2]
[423762152,1780398640000,-300.0,0.00014069,2]
[423762158,1780398640000,-534.25,0.00014069,2]
[423762160,1780398640000,-500.0,0.00014069,2]
[423762148,1780398640000,-300.0,0.00014069,2]
[423762164,1780398640000,-347.3876299,0.00014069,2]
[423762166,1780398640000,-500.0,0.00014069,2]
[423762172,1780398640000,-500.0,0.00014246,2]
[423762169,1780398640000,-500.0,0.00014069,2]
[423762241,1780398641000,-500.0,0.00014342,2]
[423762259,1780398641000,-810.94,0.0001452,2]
[423762254,1780398641000,-500.0,0.0001452,2]
[423762242,1780398641000,-500.0,0.00014342,2]
[423762240,1780398641000,-500.0,0.00014342,2]
[423762234,1780398641000,-500.0,0.0001434,2]
[423762235,1780398641000,-472.37221523,0.0001434,2]
[423762230,1780398641000,-164.3021,0.0001434,2]
[423762236,1780398641000,-500.0,0.0001434,2]
[423762237,1780398641000,-500.0,0.0001434,2]
[423762233,1780398641000,-500.0,0.0001434,2]
[423762239,1780398641000,-1273.15,0.00014342,2]
[423762244,1780398641000,-278.27880041,0.00014342,2]
[423762248,1780398641000,-500.0,0.00014343,2]
[423762245,1780398641000,-500.0,0.00014343,2]
[423762243,1780398641000,-500.0,0.00014342,2]
[423762252,1780398641000,-500.0,0.00014343,2]
[423762251,1780398641000,-500.0,0.00014343,2]
[423762250,1780398641000,-172.54957007,0.00014343,2]
[423762247,1780398641000,-441.79482215,0.00014343,2]
[423762249,1780398641000,-343.43455674,0.00014343,2]
[423762253,1780398641000,-500.0,0.0001452,2]
[423762256,1780398641000,-500.0,0.0001452,2]
[423762255,1780398641000,-535.91,0.0001452,2]
[423762258,1780398641000,-500.0,0.0001452,2]
[423762257,1780398641000,-500.0,0.0001452,2]
[423762238,1780398641000,-1774.6875,0.00014341,2]
[423762246,1780398641000,-265.47602992,0.00014343,2]
[423762231,1780398641000,-500.0,0.0001434,2]
[423762216,1780398641000,-500.0,0.0001434,2]
[423762229,1780398641000,-500.0,0.0001434,2]
[423762262,1780398641000,-500.0,0.0001452,2]
[423762202,1780398641000,-500.0,0.0001434,2]
[423762201,1780398641000,-500.0,0.0001434,2]
[423762204,1780398641000,-500.0,0.0001434,2]
[423762203,1780398641000,-500.0,0.0001434,2]
[423762213,1780398641000,-500.0,0.0001434,2]
[423762214,1780398641000,-500.0,0.0001434,2]
[423762212,1780398641000,-500.0,0.0001434,2]
[423762206,1780398641000,-500.0,0.0001434,2]
[423762207,1780398641000,-500.0,0.0001434,2]
[423762209,1780398641000,-500.0,0.0001434,2]
[423762211,1780398641000,-500.0,0.0001434,2]
[423762205,1780398641000,-500.0,0.0001434,2]
[423762232,1780398641000,-500.0,0.0001434,2]
[423762208,1780398641000,-500.0,0.0001434,2]
[423762215,1780398641000,-500.0,0.0001434,2]
[423762218,1780398641000,-690.91,0.0001434,2]
[423762219,1780398641000,-500.0,0.0001434,2]
[423762217,1780398641000,-500.0,0.0001434,2]
[423762226,1780398641000,-500.0,0.0001434,2]
[423762227,1780398641000,-500.0,0.0001434,2]
[423762220,1780398641000,-500.0,0.0001434,2]
[423762221,1780398641000,-290.34993335,0.0001434,2]
[423762222,1780398641000,-500.0,0.0001434,2]
[423762223,1780398641000,-500.0,0.0001434,2]
[423762225,1780398641000,-500.0,0.0001434,2]
[423762224,1780398641000,-701.31,0.0001434,2]
[423762228,1780398641000,-500.0,0.0001434,2]
[423762210,1780398641000,-500.0,0.0001434,2]
[423762261,1780398641000,-500.0,0.0001452,2]
[423762264,1780398641000,-501.38,0.00014613,2]
[423762263,1780398641000,-151.0,0.000146,2]
[423762293,1780398641000,-500.0,0.00014614,2]
[423762299,1780398641000,-500.0,0.00014614,2]
[423762296,1780398641000,-500.0,0.00014614,2]
[423762298,1780398641000,-500.0,0.00014614,2]
[423762294,1780398641000,-500.0,0.00014614,2]
[423762300,1780398641000,-701.31,0.00014614,2]
[423762301,1780398641000,-500.0,0.00014614,2]
[423762304,1780398641000,-500.0,0.00014614,2]
[423762306,1780398641000,-500.0,0.00014614,2]
[423762310,1780398641000,-500.0,0.00014614,2]
[423762305,1780398641000,-500.0,0.00014614,2]
[423762309,1780398641000,-500.0,0.00014614,2]
[423762308,1780398641000,-500.0,0.00014614,2]
[423762302,1780398641000,-500.0,0.00014614,2]
[423762307,1780398641000,-500.0,0.00014614,2]
[423762313,1780398641000,-1273.15,0.00014616,2]
[423762312,1780398641000,-1774.6875,0.00014615,2]
[423762314,1780398641000,-500.0,0.00014616,2]
[423762315,1780398641000,-500.0,0.00014616,2]
[423762317,1780398641000,-517.35106682,0.00014616,2]
[423762316,1780398641000,-500.0,0.00014616,2]
[423762319,1780398641000,-500.0,0.00014617,2]
[423762320,1780398641000,-500.0,0.00014617,2]
[423762318,1780398641000,-238.64031516,0.00014617,2]
[423762321,1780398641000,-500.0,0.00014617,2]
[423762323,1780398641000,-500.0,0.00014794,2]
[423762322,1780398641000,-500.0,0.00014794,2]
[423762260,1780398641000,-1062.49,0.0001452,2]
[423762311,1780398641000,-500.0,0.00014614,2]
[423762297,1780398641000,-460.07854154,0.00014614,2]
[423762324,1780398641000,-535.91,0.00014794,2]
[423762291,1780398641000,-500.0,0.00014614,2]
[423762303,1780398641000,-500.0,0.00014614,2]
[423762265,1780398641000,-500.0,0.00014613,2]
[423762267,1780398641000,-569.45,0.00014613,2]
[423762275,1780398641000,-611.8543049,0.00014614,2]
[423762266,1780398641000,-759.36,0.00014613,2]
[423762268,1780398641000,-500.0,0.00014614,2]
[423762276,1780398641000,-821.69,0.00014614,2]
[423762270,1780398641000,-500.0,0.00014614,2]
[423762271,1780398641000,-500.0,0.00014614,2]
[423762269,1780398641000,-500.0,0.00014614,2]
[423762272,1780398641000,-500.0,0.00014614,2]
[423762274,1780398641000,-456.97532741,0.00014614,2]
[423762273,1780398641000,-500.0,0.00014614,2]
[423762277,1780398641000,-500.0,0.00014614,2]
[423762325,1780398641000,-500.0,0.00014794,2]
[423762279,1780398641000,-649.84376502,0.00014614,2]
[423762295,1780398641000,-690.91,0.00014614,2]
[423762278,1780398641000,-500.0,0.00014614,2]
[423762290,1780398641000,-500.0,0.00014614,2]
[423762284,1780398641000,-500.0,0.00014614,2]
[423762288,1780398641000,-500.0,0.00014614,2]
[423762287,1780398641000,-615.92427851,0.00014614,2]
[423762292,1780398641000,-500.0,0.00014614,2]
[423762283,1780398641000,-500.0,0.00014614,2]
[423762285,1780398641000,-500.0,0.00014614,2]
[423762286,1780398641000,-500.0,0.00014614,2]
[423762281,1780398641000,-500.0,0.00014614,2]
[423762280,1780398641000,-500.0,0.00014614,2]
[423762289,1780398641000,-500.0,0.00014614,2]
[423762282,1780398641000,-500.0,0.00014614,2]
[423762367,1780398642000,-500.0,0.00014888,2]
[423762356,1780398642000,-500.0,0.00014888,2]
[423762357,1780398642000,-500.0,0.00014888,2]
[423762354,1780398642000,-500.0,0.00014888,2]
[423762360,1780398642000,-690.91,0.00014888,2]
[423762361,1780398642000,-500.0,0.00014888,2]
[423762358,1780398642000,-500.0,0.00014888,2]
[423762359,1780398642000,-500.0,0.00014888,2]
[423762364,1780398642000,-500.0,0.00014888,2]
[423762363,1780398642000,-500.0,0.00014888,2]
[423762368,1780398642000,-500.0,0.00014888,2]
[423762362,1780398642000,-422.98438476,0.00014888,2]
[423762370,1780398642000,-500.0,0.00014888,2]
[423762371,1780398642000,-500.0,0.00014888,2]
[423762373,1780398642000,-500.0,0.00014888,2]
[423762372,1780398642000,-500.0,0.00014888,2]
[423762376,1780398642000,-1774.6875,0.00014889,2]
[423762374,1780398642000,-500.0,0.00014888,2]
[423762375,1780398642000,-500.0,0.00014888,2]
[423762377,1780398642000,-1273.15,0.0001489,2]
[423762379,1780398642000,-500.0,0.0001489,2]
[423762389,1780398642000,-160.0,0.00014988,2]
[423762388,1780398642000,-160.0,0.00014986,2]
[423762384,1780398642000,-151.0,0.000149,2]
[423762366,1780398642000,-255.96992707,0.00014888,2]
[423762380,1780398642000,-500.0,0.0001489,2]
[423762369,1780398642000,-500.0,0.00014888,2]
[423762365,1780398642000,-701.31,0.00014888,2]
[423762340,1780398642000,-500.0,0.00014888,2]
[423762353,1780398642000,-500.0,0.00014888,2]
[423762378,1780398642000,-500.0,0.0001489,2]
[423762327,1780398642000,-500.0,0.00014794,2]
[423762326,1780398642000,-500.0,0.00014794,2]
[423762328,1780398642000,-810.94,0.00014794,2]
[423762330,1780398642000,-500.0,0.00014794,2]
[423762338,1780398642000,-422.69785005,0.00014888,2]
[423762339,1780398642000,-421.05,0.00014888,2]
[423762335,1780398642000,-759.36,0.00014887,2]
[423762329,1780398642000,-1062.49,0.00014794,2]
[423762336,1780398642000,-569.45,0.00014887,2]
[423762331,1780398642000,-500.0,0.00014794,2]
[423762333,1780398642000,-501.38,0.00014887,2]
[423762355,1780398642000,-435.27152895,0.00014888,2]
[423762334,1780398642000,-500.0,0.00014887,2]
[423762342,1780398642000,-500.0,0.00014888,2]
[423762352,1780398642000,-500.0,0.00014888,2]
[423762341,1780398642000,-500.0,0.00014888,2]
[423762344,1780398642000,-500.0,0.00014888,2]
[423762343,1780398642000,-821.69,0.00014888,2]
[423762345,1780398642000,-500.0,0.00014888,2]
[423762351,1780398642000,-500.0,0.00014888,2]
[423762349,1780398642000,-500.0,0.00014888,2]
[423762348,1780398642000,-500.0,0.00014888,2]
[423762346,1780398642000,-500.0,0.00014888,2]
[423762350,1780398642000,-516.25677923,0.00014888,2]
[423762347,1780398642000,-500.0,0.00014888,2]
[423762337,1780398642000,-246.75770995,0.00014888,2]
[423762382,1780398642000,-500.0,0.00014891,2]
[423762332,1780398642000,-346.82853788,0.00014837,2]
[423762387,1780398642000,-160.0,0.00014986,2]
[423762419,1780398642000,-500.0,0.00015162,2]
[423762429,1780398642000,-500.0,0.00015162,2]
[423762430,1780398642000,-701.31,0.00015162,2]
[423762432,1780398642000,-500.0,0.00015162,2]
[423762434,1780398642000,-500.0,0.00015162,2]
[423762421,1780398642000,-500.0,0.00015162,2]
[423762423,1780398642000,-500.0,0.00015162,2]
[423762422,1780398642000,-500.0,0.00015162,2]
[423762424,1780398642000,-500.0,0.00015162,2]
[423762426,1780398642000,-500.0,0.00015162,2]
[423762425,1780398642000,-500.0,0.00015162,2]
[423762427,1780398642000,-690.91,0.00015162,2]
[423762428,1780398642000,-500.0,0.00015162,2]
[423762437,1780398642000,-500.0,0.00015162,2]
[423762439,1780398642000,-500.0,0.00015162,2]
[423762441,1780398642000,-500.0,0.00015162,2]
[423762443,1780398642000,-500.0,0.00015162,2]
[423762440,1780398642000,-500.0,0.00015162,2]
[423762442,1780398642000,-500.0,0.00015162,2]
[423762444,1780398642000,-1774.6875,0.00015163,2]
[423762436,1780398642000,-500.0,0.00015162,2]
[423762445,1780398642000,-1273.15,0.00015164,2]
[423762447,1780398642000,-500.0,0.00015164,2]
[423762449,1780398642000,-500.0,0.00015165,2]
[423762448,1780398642000,-500.0,0.00015164,2]
[423762450,1780398642000,-500.0,0.00015165,2]
[423762383,1780398642000,-500.0,0.00014891,2]
[423762417,1780398642000,-649.57394327,0.00015162,2]
[423762412,1780398642000,-500.0,0.00015162,2]
[423762446,1780398642000,-500.0,0.00015164,2]
[423762408,1780398642000,-500.0,0.00015162,2]
[423762411,1780398642000,-821.69,0.00015162,2]
[423762385,1780398642000,-151.0,0.000149,2]
[423762386,1780398642000,-160.0,0.00014986,2]
[423762391,1780398642000,-7201.76364397,0.00015,2]
[423762381,1780398642000,-500.0,0.00014891,2]
[423762393,1780398642000,-500.0,0.00015068,2]
[423762398,1780398642000,-500.0,0.00015068,2]
[423762392,1780398642000,-185.75893212,0.00015,2]
[423762394,1780398642000,-500.0,0.00015068,2]
[423762396,1780398642000,-500.0,0.00015068,2]
[423762395,1780398642000,-535.91,0.00015068,2]
[423762401,1780398642000,-500.0,0.00015068,2]
[423762399,1780398642000,-810.94,0.00015068,2]
[423762390,1780398642000,-184.88784442,0.00015,2]
[423762402,1780398642000,-500.0,0.00015068,2]
[423762403,1780398642000,-7201.76364397,0.000151,2]
[423762406,1780398642000,-759.36,0.00015161,2]
[423762409,1780398642000,-500.0,0.00015162,2]
[423762404,1780398642000,-501.38,0.00015161,2]
[423762410,1780398642000,-500.0,0.00015162,2]
[423762413,1780398642000,-500.0,0.00015162,2]
[423762415,1780398642000,-404.20686388,0.00015162,2]
[423762397,1780398642000,-500.0,0.00015068,2]
[423762405,1780398642000,-500.0,0.00015161,2]
[423762400,1780398642000,-1062.49,0.00015068,2]
[423762414,1780398642000,-500.0,0.00015162,2]
[423762416,1780398642000,-511.38446874,0.00015162,2]
[423762407,1780398642000,-569.45,0.00015161,2]
[423762479,1780398643000,-500.0,0.00015436,2]
[423762480,1780398643000,-500.0,0.00015436,2]
[423762481,1780398643000,-500.0,0.00015436,2]
[423762482,1780398643000,-500.0,0.00015436,2]
[423762485,1780398643000,-690.91,0.00015436,2]
[423762478,1780398643000,-500.0,0.00015436,2]
[423762484,1780398643000,-500.0,0.00015436,2]
[423762486,1780398643000,-500.0,0.00015436,2]
[423762487,1780398643000,-500.0,0.00015436,2]
[423762483,1780398643000,-500.0,0.00015436,2]
[423762489,1780398643000,-701.31,0.00015436,2]
[423762488,1780398643000,-500.0,0.00015436,2]
[423762495,1780398643000,-500.0,0.00015436,2]
[423762496,1780398643000,-500.0,0.00015436,2]
[423762490,1780398643000,-550.39246501,0.00015436,2]
[423762497,1780398643000,-500.0,0.00015436,2]
[423762492,1780398643000,-500.0,0.00015436,2]
[423762493,1780398643000,-500.0,0.00015436,2]
[423762491,1780398643000,-500.0,0.00015436,2]
[423762499,1780398643000,-1273.15,0.00015438,2]
[423762476,1780398643000,-500.0,0.00015436,2]
[423762494,1780398643000,-500.0,0.00015436,2]
[423762477,1780398643000,-500.0,0.00015436,2]
[423762461,1780398643000,-1062.49,0.00015342,2]
[423762474,1780398643000,-821.69,0.00015436,2]
[423762501,1780398643000,-500.0,0.00015438,2]
[423762451,1780398643000,-295.90536776,0.00015166,2]
[423762452,1780398643000,-151.0,0.000152,2]
[423762453,1780398643000,-7201.76364397,0.000153,2]
[423762455,1780398643000,-500.0,0.00015342,2]
[423762457,1780398643000,-517.82533023,0.00015342,2]
[423762454,1780398643000,-500.0,0.00015342,2]
[423762456,1780398643000,-535.91,0.00015342,2]
[423762459,1780398643000,-500.0,0.00015342,2]
[423762458,1780398643000,-580.12738822,0.00015342,2]
[423762460,1780398643000,-810.94,0.00015342,2]
[423762462,1780398643000,-500.0,0.00015342,2]
[423762464,1780398643000,-336.98263766,0.00015376,2]
[423762467,1780398643000,-501.38,0.00015435,2]
[423762463,1780398643000,-500.0,0.00015342,2]
[423762465,1780398643000,-7201.76364397,0.000154,2]
[423762468,1780398643000,-500.0,0.00015435,2]
[423762466,1780398643000,-151.0,0.000154,2]
[423762470,1780398643000,-569.45,0.00015435,2]
[423762469,1780398643000,-759.36,0.00015435,2]
[423762472,1780398643000,-500.0,0.00015436,2]
[423762471,1780398643000,-500.0,0.00015436,2]
[423762475,1780398643000,-500.0,0.00015436,2]
[423762473,1780398643000,-500.0,0.00015436,2]
[423762500,1780398643000,-366.81751904,0.00015438,2]
[423762498,1780398643000,-1774.6875,0.00015437,2]
[423762506,1780398643000,-300.82301167,0.00015616,2]
[423762527,1780398643000,-638.53560666,0.0001571,2]
[423762526,1780398643000,-500.0,0.0001571,2]
[423762533,1780398643000,-500.0,0.0001571,2]
[423762535,1780398643000,-500.0,0.0001571,2]
[423762536,1780398643000,-500.0,0.0001571,2]
[423762537,1780398643000,-196.1389,0.0001571,2]
[423762534,1780398643000,-701.31,0.0001571,2]
[423762544,1780398643000,-291.70314019,0.00015712,2]
[423762540,1780398643000,-500.0,0.0001571,2]
[423762543,1780398643000,-1273.15,0.00015712,2]
[423762525,1780398643000,-500.0,0.0001571,2]
[423762541,1780398643000,-500.0,0.0001571,2]
[423762542,1780398643000,-1774.6875,0.00015711,2]
[423762546,1780398643000,-151.0,0.000158,2]
[423762545,1780398643000,-7201.76364397,0.000158,2]
[423762547,1780398643000,-500.0,0.0001589,2]
[423762548,1780398643000,-535.91,0.0001589,2]
[423762549,1780398643000,-810.94,0.0001589,2]
[423762550,1780398643000,-1062.49,0.0001589,2]
[423762552,1780398643000,-7201.76364397,0.000159,2]
[423762551,1780398643000,-500.0,0.0001589,2]
[423762502,1780398643000,-546.49,0.00015438,2]
[423762538,1780398643000,-500.0,0.0001571,2]
[423762519,1780398643000,-821.69,0.0001571,2]
[423762539,1780398643000,-500.0,0.0001571,2]
[423762529,1780398643000,-217.08918143,0.0001571,2]
[423762508,1780398643000,-535.91,0.00015616,2]
[423762531,1780398643000,-500.0,0.0001571,2]
[423762505,1780398643000,-7201.76364397,0.000156,2]
[423762504,1780398643000,-151.0,0.000155,2]
[423762507,1780398643000,-500.0,0.00015616,2]
[423762503,1780398643000,-518.66,0.00015439,2]
[423762510,1780398643000,-810.94,0.00015616,2]
[423762512,1780398643000,-500.0,0.00015616,2]
[423762511,1780398643000,-1062.49,0.00015616,2]
[423762513,1780398643000,-501.38,0.00015709,2]
[423762514,1780398643000,-500.0,0.00015709,2]
[423762509,1780398643000,-536.39694566,0.00015616,2]
[423762517,1780398643000,-500.0,0.0001571,2]
[423762524,1780398643000,-500.0,0.0001571,2]
[423762518,1780398643000,-500.0,0.0001571,2]
[423762522,1780398643000,-500.0,0.0001571,2]
[423762521,1780398643000,-531.98,0.0001571,2]
[423762532,1780398643000,-500.0,0.0001571,2]
[423762528,1780398643000,-500.0,0.0001571,2]
[423762530,1780398643000,-690.91,0.0001571,2]
[423762520,1780398643000,-500.0,0.0001571,2]
[423762516,1780398643000,-569.45,0.00015709,2]
[423762515,1780398643000,-759.36,0.00015709,2]
[423762523,1780398643000,-500.0,0.0001571,2]
[423762591,1780398644000,-178.64130881,0.00016061,2]
[423762593,1780398644000,-195.41195015,0.00016079,2]
[423762595,1780398644000,-211.510304,0.00016079,2]
[423762598,1780398644000,-165.09361506,0.00016164,2]
[423762590,1780398644000,-198.64530185,0.00016061,2]
[423762585,1780398644000,-158.31328682,0.00016061,2]
[423762594,1780398644000,-162.8749919,0.00016079,2]
[423762592,1780398644000,-150.83421263,0.00016061,2]
[423762589,1780398644000,-185.97844118,0.00016061,2]
[423762588,1780398644000,-173.73058476,0.00016061,2]
[423762609,1780398644000,-500.0,0.00016258,2]
[423762596,1780398644000,-7201.76364397,0.000161,2]
[423762587,1780398644000,-197.0909483,0.00016061,2]
[423762600,1780398644000,-810.94,0.00016164,2]
[423762621,1780398644000,-701.31,0.00016258,2]
[423762597,1780398644000,-397.09668823,0.00016106,2]
[423762608,1780398644000,-345.08286897,0.00016258,2]
[423762599,1780398644000,-535.91,0.00016164,2]
[423762602,1780398644000,-500.0,0.00016164,2]
[423762604,1780398644000,-501.38,0.00016257,2]
[423762603,1780398644000,-7201.76364397,0.000162,2]
[423762607,1780398644000,-569.45,0.00016257,2]
[423762605,1780398644000,-500.0,0.00016257,2]
[423762606,1780398644000,-759.36,0.00016257,2]
[423762611,1780398644000,-500.0,0.00016258,2]
[423762622,1780398644000,-500.0,0.00016258,2]
[423762612,1780398644000,-156.98442843,0.00016258,2]
[423762613,1780398644000,-500.0,0.00016258,2]
[423762586,1780398644000,-178.49279342,0.00016061,2]
[423762601,1780398644000,-1062.49,0.00016164,2]
[423762582,1780398644000,-600.0,0.00016029,2]
[423762569,1780398644000,-500.0,0.00015984,2]
[423762577,1780398644000,-500.0,0.00015984,2]
[423762615,1780398644000,-500.0,0.00016258,2]
[423762556,1780398644000,-569.45,0.00015983,2]
[423762557,1780398644000,-500.0,0.00015984,2]
[423762554,1780398644000,-500.0,0.00015983,2]
[423762555,1780398644000,-759.36,0.00015983,2]
[423762553,1780398644000,-501.38,0.00015983,2]
[423762559,1780398644000,-821.69,0.00015984,2]
[423762571,1780398644000,-500.0,0.00015984,2]
[423762570,1780398644000,-701.31,0.00015984,2]
[423762561,1780398644000,-525.72,0.00015984,2]
[423762558,1780398644000,-500.0,0.00015984,2]
[423762560,1780398644000,-500.0,0.00015984,2]
[423762562,1780398644000,-500.0,0.00015984,2]
[423762564,1780398644000,-500.0,0.00015984,2]
[423762568,1780398644000,-500.0,0.00015984,2]
[423762566,1780398644000,-500.0,0.00015984,2]
[423762563,1780398644000,-500.0,0.00015984,2]
[423762565,1780398644000,-500.0,0.00015984,2]
[423762567,1780398644000,-690.91,0.00015984,2]
[423762574,1780398644000,-500.0,0.00015984,2]
[423762572,1780398644000,-500.0,0.00015984,2]
[423762573,1780398644000,-500.0,0.00015984,2]
[423762584,1780398644000,-179.43226899,0.0001605,2]
[423762575,1780398644000,-500.0,0.00015984,2]
[423762579,1780398644000,-1273.15,0.00015986,2]
[423762580,1780398644000,-151.0,0.00016,2]
[423762578,1780398644000,-1774.6875,0.00015985,2]
[423762581,1780398644000,-151.0,0.00016,2]
[423762576,1780398644000,-648.65,0.00015984,2]
[423762583,1780398644000,-185.22320052,0.0001605,2]
[423762614,1780398644000,-500.0,0.00016258,2]
[423762610,1780398644000,-821.69,0.00016258,2]
[423762617,1780398644000,-690.91,0.00016258,2]
[423762658,1780398644000,-500.0,0.00016532,2]
[423762661,1780398644000,-1273.15,0.00016534,2]
[423762655,1780398644000,-500.0,0.00016532,2]
[423762656,1780398644000,-500.0,0.00016532,2]
[423762659,1780398644000,-500.0,0.00016532,2]
[423762657,1780398644000,-500.0,0.00016532,2]
[423762654,1780398644000,-701.31,0.00016532,2]
[423762649,1780398644000,-500.0,0.00016532,2]
[423762660,1780398644000,-1719.409,0.00016533,2]
[423762663,1780398644000,-535.91,0.00016712,2]
[423762675,1780398644000,-500.0,0.00016806,2]
[423762673,1780398644000,-500.0,0.00016806,2]
[423762662,1780398644000,-151.0,0.000166,2]
[423762674,1780398644000,-151.0,0.00016806,2]
[423762653,1780398644000,-307.58,0.00016532,2]
[423762664,1780398644000,-810.94,0.00016712,2]
[423762668,1780398644000,-426.70911429,0.00016805,2]
[423762669,1780398644000,-759.36,0.00016805,2]
[423762672,1780398644000,-821.69,0.00016806,2]
[423762666,1780398644000,-500.0,0.00016712,2]
[423762665,1780398644000,-1062.49,0.00016712,2]
[423762671,1780398644000,-500.0,0.00016806,2]
[423762670,1780398644000,-569.45,0.00016805,2]
[423762676,1780398644000,-500.0,0.00016806,2]
[423762678,1780398644000,-690.91,0.00016806,2]
[423762679,1780398644000,-701.31,0.00016806,2]
[423762683,1780398644000,-500.0,0.00016806,2]
[423762681,1780398644000,-178.06348856,0.00016806,2]
[423762680,1780398644000,-500.0,0.00016806,2]
[423762618,1780398644000,-500.0,0.00016258,2]
[423762667,1780398644000,-501.38,0.00016805,2]
[423762652,1780398644000,-484.42585115,0.00016532,2]
[423762677,1780398644000,-500.0,0.00016806,2]